fUST/lending_fUST_20260421
["ID","MTS","AMOUNT","RATE_DAILY","PERIOD"]
[420918825,1776727839182,-557.844077,8.419e-05,2]
[420918826,1776727839192,-557.844077,8.723e-05,2]
[420918827,1776727839201,-221.90903579,9.392e-05,2]
[420918828,1776727839211,-617.18516373,9.72e-05,2]
[420918829,1776727839220,-500.0,0.00010026,2]
[420918830,1776727839229,-500.0,0.00010026,2]
[420918831,1776727839238,-500.0,0.00010026,2]
[420918832,1776727839246,-226.85784565,0.00010026,2]
[420918833,1776727839257,-14963.20096029,0.00010027,2]
[420918834,1776727839266,-151.0,0.00010027,2]
[420918835,1776727839276,-600.0,0.00010227,2]
[420918836,1776727839285,-410.96541539,0.00011208,2]
[420918837,1776727839295,-1643.86166155,0.00011208,2]
[420918838,1776727839304,-3698.6887385,0.00011208,2]
[420918839,1776727839314,-6568.87119957,0.00011208,2]
[420918840,1776727839323,-538.14202159,0.00011208,2]
[420918841,1776727839332,-2152.56808637,0.00011208,2]
[420918842,1776727839342,-720.0,0.00011249,2]
[420918843,1776727839352,-255.75956667,0.00011392,2]
[420918844,1776727839361,-325.3138637,0.00011472,2]
[420918845,1776727839370,-455.7290828,0.00011472,2]
[420918846,1776727839379,-455.701244,0.00011522,2]
[420918847,1776727839388,-353.35864128,0.00011698,2]
[420918848,1776727839398,-194.36672979,0.00011949,2]
[420918849,1776727839407,-163.83909932,0.00011949,2]
[420918850,1776727839416,-261.46984455,0.00011949,2]
[420918851,1776727839425,-245.29543045,0.00011949,2]
[420918852,1776727839434,-162.380719,0.00012102,2]
[420918853,1776727839444,-445.202766,0.00012102,2]
[420918854,1776727839453,-537.6845,0.00012102,2]
[420918855,1776727839462,-537.6845,0.00012102,2]
[420918856,1776727839471,-2150.738,0.00012102,2]
[420918857,1776727839481,-151.0,0.00012119,2]
[420918858,1776727839490,-557.5788265,0.00012157,2]
[420918859,1776727839499,-500.0,0.00012173,2]
[420918860,1776727839508,-500.0,0.00012173,2]
[420918861,1776727839518,-314.52362908,0.00012173,2]
[420918862,1776727839527,-500.0,0.00012173,2]
[420918863,1776727839536,-500.0,0.00012173,2]
[420918864,1776727839546,-353.35864126,0.00012173,2]
[420918865,1776727839555,-578.20924308,0.00012212,2]
[420918866,1776727839564,-500.0,0.00012223,2]
[420918867,1776727839573,-500.0,0.00012223,2]
[420918868,1776727839583,-500.0,0.00012223,2]
[420918869,1776727839592,-500.0,0.00012223,2]
[420918870,1776727839601,-500.0,0.00012223,2]
[420918871,1776727839610,-501.01009308,0.00012223,2]
[420918872,1776727839619,-500.0,0.00012223,2]
[420918873,1776727839628,-599.60298507,0.00012267,2]
[420918874,1776727839637,-151.0776217,0.00012294,2]
[420918875,1776727839647,-5000.0,0.000123,2]
[420918876,1776727839657,-151.0,0.000123,2]
[420918877,1776727839666,-621.78829552,0.00012322,2]
[420918878,1776727839675,-2208.0,0.00012332,2]
[420918879,1776727839685,-864.0,0.00012374,2]
[420918880,1776727839694,-644.79446246,0.00012377,2]
[420918881,1776727839704,-668.65185757,0.00012432,2]
[420918882,1776727839713,-778.01433786,0.00012487,2]
[420918883,1776727839722,-500.0,0.00012497,2]
[420918884,1776727839732,-19900.93461373,0.00012497,2]
[420918885,1776727839741,-353.35864126,0.00012649,2]
[420918886,1776727839751,-382.64500388,0.0001265,2]
[420918887,1776727839760,-557.5788265,0.0001265,2]
[420918888,1776727839770,-2230.315306,0.0001265,2]
[420918889,1776727839779,-151.0,0.000127,2]
[420918890,1776727839788,-151.0,0.000127,2]
[420918891,1776727839797,-1000.0,0.00012721,2]
[420918892,1776727839807,-1000.0,0.00012721,2]
[420918893,1776727839816,-500.0,0.00012721,2]
[420918894,1776727839826,-1000.0,0.00012721,2]
[420918895,1776727839835,-500.0,0.00012752,2]
[420918896,1776727839844,-500.0,0.00012771,2]
[420918897,1776727839853,-500.0,0.000128,2]
[420918898,1776727839863,-151.0,0.000128,2]
[420918899,1776727839872,-151.0,0.000128,2]
[420918900,1776727839881,-151.0,0.000128,2]
[420918901,1776727839890,-151.0,0.000128,2]
[420918902,1776727839900,-151.0,0.000128,2]
[420918903,1776727839909,-151.0,0.000128,2]
[420918904,1776727839918,-791.0,0.000128,2]
[420918905,1776727839928,-648.0,0.00012815,2]
[420918906,1776727839938,-648.0,0.00012815,2]
[420918907,1776727839947,-151.0,0.00012815,2]
[420918908,1776727839956,-648.0,0.00012815,2]
[420918909,1776727839965,-151.0,0.00012815,2]
[420918910,1776727839975,-648.0,0.00012815,2]
[420918911,1776727839984,-151.0,0.00012815,2]
[420918912,1776727839993,-648.0,0.00012815,2]
[420918913,1776727840002,-648.0,0.00012815,2]
[420918914,1776727840012,-151.0,0.00012815,2]
[420918915,1776727840021,-648.0,0.00012815,2]
[420918916,1776727840030,-151.0,0.00012815,2]
[420918917,1776727840040,-648.0,0.00012815,2]
[420918918,1776727840049,-151.0,0.00012815,2]
[420918919,1776727840058,-648.0,0.00012815,2]
[420918920,1776727840067,-151.0,0.00012815,2]
[420918921,1776727840077,-648.0,0.00012815,2]
[420918922,1776727840086,-151.0,0.00012815,2]
[420918923,1776727840095,-648.0,0.00012815,2]
[420918924,1776727840104,-648.0,0.00012815,2]
[420918925,1776727840114,-155.3062508,0.00012815,2]
[420918926,1776727840122,-648.0,0.00012815,2]
[420918927,1776727840132,-648.0,0.00012815,2]
[420918928,1776727840141,-648.0,0.00012815,2]
[420918929,1776727840150,-176.52891142,0.00012815,2]
[420918930,1776727840159,-347.41390026,0.00012815,2]
[420918931,1776727840168,-304.692,0.00012876,2]
[420918932,1776727840177,-160.0,0.00012902,2]
[420918933,1776727840186,-2597.0,0.00012911,2]
[420918934,1776727840196,-187.65233645,0.00012916,2]
[420918935,1776727840205,-500.0,0.00013,2]
[420918936,1776727840214,-2033.0,0.00013,5]
[420918937,1776727840223,-500.0,0.00013045,2]
[420918938,1776727840233,-821.0,0.00013076,2]
[420918939,1776727840242,-455.7290828,0.00013116,2]
[420918940,1776727840251,-353.35864126,0.00013124,2]
[420918941,1776727840260,-2597.0,0.00013149,2]
[420918942,1776727840269,-2597.0,0.00013167,2]
[420918943,1776727840278,-578.20924308,0.00013198,2]
[420918944,1776727840287,-2312.83697232,0.00013198,2]
[420918945,1776727840296,-2597.0,0.00013216,2]
[420918946,1776727840306,-1276.35564692,0.00013268,2]
[420918947,1776727840315,-821.31831045,0.00013268,2]
[420918948,1776727840324,-500.0,0.00013268,2]
[420918949,1776727840333,-500.0,0.00013319,2]
[420918950,1776727840342,-2597.0,0.00013335,2]
[420918951,1776727840351,-289.61009755,0.00013392,2]
[420918952,1776727840360,-5000.0,0.00013424,2]
[420918953,1776727840369,-160.0,0.00013425,2]
[420918954,1776727840378,-357.990208,0.00013425,2]
[420918955,1776727840388,-555.980416,0.00013425,2]
[420918956,1776727840397,-337.618215,0.00013425,2]
[420918957,1776727840406,-160.0,0.00013425,2]
[420918958,1776727840416,-649.161262,0.00013425,2]
[420918959,1776727840429,-1138.322524,0.00013425,2]
[420918960,1776727840440,-160.0,0.00013425,2]
[420918961,1776727840452,-1838.478401,0.00013425,2]
[420918962,1776727840463,-3516.956803,0.00013425,2]
[420918963,1776727840475,-160.0,0.00013425,2]
[420918964,1776727840485,-452.568217,0.00013425,2]
[420918965,1776727840494,-745.136435,0.00013425,2]
[420918966,1776727840506,-206.071919,0.00013425,2]
[420918967,1776727840517,-1492.50203516,0.00013425,2]
[420918968,1776727840529,-152.0,0.00013434,7]
[420918969,1776727840541,-152.0,0.00013448,7]
[420918970,1776727840552,-152.0,0.00013448,7]
[420918971,1776727840564,-168.3888056,0.00013471,2]
[420918972,1776727840575,-2597.0,0.00013477,2]
[420918973,1776727840587,-821.0,0.00013504,2]
[420918974,1776727840599,-821.0,0.00013504,2]
[420918975,1776727840610,-2597.0,0.00013523,2]
[420918976,1776727840620,-353.35864126,0.00013599,2]
[420918977,1776727840631,-1000.0,0.00013611,2]
[420918978,1776727840643,-455.0,0.00013635,2]
[420918979,1776727840655,-500.0,0.00013673,2]
[420918980,1776727840666,-155.0,0.00013698,2]
[420918981,1776727840678,-500.0,0.00013698,2]
[420918982,1776727840689,-500.0,0.00013698,2]
[420918983,1776727840700,-500.0,0.00013698,2]
[420918984,1776727840710,-500.0,0.00013698,2]
[420918985,1776727840722,-500.0,0.00013698,2]
[420918986,1776727840733,-500.0,0.00013698,2]
[420918987,1776727840744,-500.0,0.00013698,2]
[420918988,1776727840755,-500.0,0.00013698,2]
[420918989,1776727840766,-500.0,0.00013698,2]
[420918990,1776727840778,-500.0,0.00013698,2]
[420918991,1776727840792,-500.0,0.00013698,2]
[420918992,1776727840802,-500.0,0.00013698,2]
[420918993,1776727840814,-500.0,0.00013698,2]
[420918994,1776727840827,-500.0,0.00013698,2]
[420918995,1776727840838,-500.0,0.00013698,2]
[420918996,1776727840851,-500.0,0.00013698,2]
[420918997,1776727840862,-500.0,0.00013698,2]
[420918998,1776727840874,-500.0,0.00013698,2]
[420918999,1776727840884,-500.0,0.00013698,2]
[420919000,1776727840896,-500.0,0.00013698,2]
[420919001,1776727840909,-500.0,0.00013698,2]
[420919002,1776727840920,-500.0,0.00013698,2]
[420919003,1776727840932,-500.0,0.00013698,2]
[420919004,1776727840944,-245.35475272,0.00013698,2]
[420919005,1776727840955,-155.0,0.00013698,2]
[420919006,1776727840965,-500.0,0.00013698,2]
[420919007,1776727840976,-500.0,0.00013698,2]
[420919008,1776727840986,-500.0,0.00013698,2]
[420919009,1776727840996,-500.0,0.00013698,2]
[420919010,1776727841006,-500.0,0.00013698,2]
[420919011,1776727841017,-500.0,0.00013698,2]
[420919012,1776727841030,-500.0,0.00013698,2]
[420919013,1776727841042,-500.0,0.00013698,2]
[420919014,1776727841052,-500.0,0.00013698,2]
[420919015,1776727841069,-362.52203252,0.00013698,2]
[420919016,1776727841079,-156.0,0.00013699,2]
[420919017,1776727841091,-180.0,0.00013699,2]
[420919018,1776727841103,-1000.0,0.00013699,2]
[420919019,1776727841115,-2992.463971,0.00013699,2]
[420919020,1776727841127,-577.007933,0.00013699,2]
[420919021,1776727841137,-265.305485,0.00013699,2]
[420919022,1776727841149,-265.305485,0.00013699,2]
[420919023,1776727841161,-265.305485,0.00013699,2]
[420919024,1776727841172,-265.305485,0.00013699,2]
[420919025,1776727841183,-265.305485,0.00013699,2]
[420919026,1776727841193,-265.305485,0.00013699,2]
[420919027,1776727841204,-265.305485,0.00013699,2]
[420919028,1776727841214,-265.305485,0.00013699,2]
[420919029,1776727841224,-265.305485,0.00013699,2]
[420919030,1776727841235,-265.305485,0.00013699,2]
[420919031,1776727841246,-265.305485,0.00013699,2]
[420919032,1776727841257,-265.305485,0.00013699,2]
[420919033,1776727841268,-265.305485,0.00013699,2]
[420919034,1776727841278,-265.305485,0.00013699,2]
[420919035,1776727841289,-265.305485,0.00013699,2]
[420919036,1776727841299,-265.305485,0.00013699,2]
[420919037,1776727841309,-265.305485,0.00013699,2]
[420919038,1776727841320,-265.305485,0.00013699,2]
[420919039,1776727841330,-265.305485,0.00013699,2]
[420919040,1776727841341,-265.305489,0.00013699,2]
[420919041,1776727841351,-151.0,0.00013699,2]
[420919042,1776727841362,-151.0,0.00013699,2]
[420919043,1776727841375,-151.0,0.00013699,2]
[420919044,1776727841385,-151.0,0.00013699,2]
[420919045,1776727841396,-151.0,0.00013699,2]
[420919046,1776727841406,-151.0,0.00013699,2]
[420919047,1776727841416,-151.0,0.00013699,2]
[420919048,1776727841427,-151.0,0.00013699,2]
[420919049,1776727841437,-151.0,0.00013699,2]
[420919050,1776727841447,-151.0,0.00013699,2]
[420919051,1776727841458,-151.0,0.00013699,2]
[420919052,1776727841469,-151.0,0.00013699,2]
[420919053,1776727841480,-151.0,0.00013699,2]
[420919054,1776727841490,-151.0,0.00013699,2]
[420919055,1776727841501,-151.0,0.00013699,2]
[420919056,1776727841511,-300.542212,0.00013699,2]
[420919057,1776727841522,-151.0,0.00013699,2]
[420919058,1776727841533,-151.0,0.00013699,2]
[420919059,1776727841544,-151.0,0.00013699,2]
[420919060,1776727841554,-151.0,0.00013699,2]
[420919061,1776727841565,-151.0,0.00013699,2]
[420919062,1776727841576,-151.0,0.00013699,2]
[420919063,1776727841586,-151.0,0.00013699,2]
[420919064,1776727841597,-151.0,0.00013699,2]
[420919065,1776727841607,-151.0,0.00013699,2]
[420919066,1776727841618,-151.0,0.00013699,2]
[420919067,1776727841629,-151.0,0.00013699,2]
[420919068,1776727841639,-151.0,0.00013699,2]
[420919069,1776727841651,-151.0,0.00013699,2]
[420919070,1776727841661,-151.0,0.00013699,2]
[420919071,1776727841671,-151.0,0.00013699,2]
[420919072,1776727841684,-151.0,0.00013699,2]
[420919073,1776727841694,-151.0,0.00013699,2]
[420919074,1776727841705,-151.0,0.00013699,2]
[420919075,1776727841716,-188.0,0.00013699,2]
[420919076,1776727841726,-492.45,0.00013699,2]
[420919077,1776727841737,-492.45,0.00013699,2]
[420919078,1776727841748,-492.45,0.00013699,2]
[420919079,1776727841759,-492.45,0.00013699,2]
[420919080,1776727841771,-492.45,0.00013699,2]
[420919081,1776727841781,-492.45,0.00013699,2]
[420919082,1776727841791,-492.45,0.00013699,2]
[420919083,1776727841802,-492.45,0.00013699,2]
[420919084,1776727841813,-492.45,0.00013699,2]
[420919085,1776727841823,-492.45,0.00013699,2]
[420919086,1776727841834,-492.45,0.00013699,2]
[420919087,1776727841845,-492.45,0.00013699,2]
[420919088,1776727841856,-492.45,0.00013699,2]
[420919089,1776727841868,-492.45,0.00013699,2]
[420919090,1776727841878,-492.45,0.00013699,2]
[420919091,1776727841889,-492.45,0.00013699,2]
[420919092,1776727841900,-492.45,0.00013699,2]
[420919093,1776727841911,-492.45,0.00013699,2]
[420919094,1776727841922,-492.45,0.00013699,2]
[420919095,1776727841933,-492.45,0.00013699,2]
[420919096,1776727841943,-151.073482,0.00013699,2]
[420919097,1776727841954,-299.299202,0.00013699,2]
[420919098,1776727841965,-299.299202,0.00013699,2]
[420919099,1776727841975,-299.299202,0.00013699,2]
[420919100,1776727841986,-299.299202,0.00013699,2]
[420919101,1776727841996,-299.299202,0.00013699,2]
[420919102,1776727842007,-299.299202,0.00013699,2]
[420919103,1776727842018,-299.299202,0.00013699,2]
[420919104,1776727842028,-299.299202,0.00013699,2]
[420919105,1776727842038,-299.299202,0.00013699,2]
[420919106,1776727842049,-299.299202,0.00013699,2]
[420919107,1776727842060,-299.299202,0.00013699,2]
[420919108,1776727842070,-299.299202,0.00013699,2]
[420919109,1776727842081,-299.299202,0.00013699,2]
[420919110,1776727842091,-299.299202,0.00013699,2]
[420919111,1776727842101,-299.299202,0.00013699,2]
[420919112,1776727842112,-299.299202,0.00013699,2]
[420919113,1776727842122,-299.299202,0.00013699,2]
[420919114,1776727842132,-299.299202,0.00013699,2]
[420919115,1776727842143,-299.299202,0.00013699,2]
[420919116,1776727842153,-151.0,0.00013699,2]
[420919117,1776727842163,-299.2992021,0.00013699,2]
[420919118,1776727842173,-151.0,0.00013699,2]
[420919119,1776727842183,-151.0,0.00013699,2]
[420919120,1776727842194,-151.0,0.00013699,2]
[420919121,1776727842204,-151.0,0.00013699,2]
[420919122,1776727842214,-216.145007,0.00013699,2]
[420919123,1776727842224,-263.298408,0.00013699,2]
[420919124,1776727842234,-263.298408,0.00013699,2]
[420919125,1776727842245,-263.298408,0.00013699,2]
[420919126,1776727842255,-263.298408,0.00013699,2]
[420919127,1776727842266,-263.298408,0.00013699,2]
[420919128,1776727842277,-263.298408,0.00013699,2]
[420919129,1776727842287,-263.298408,0.00013699,2]
[420919130,1776727842297,-263.298408,0.00013699,2]
[420919131,1776727842307,-263.298408,0.00013699,2]
[420919132,1776727842317,-263.298408,0.00013699,2]
[420919133,1776727842328,-263.298408,0.00013699,2]
[420919134,1776727842339,-263.298408,0.00013699,2]
[420919135,1776727842349,-263.298408,0.00013699,2]
[420919136,1776727842360,-263.298408,0.00013699,2]
[420919137,1776727842370,-263.298408,0.00013699,2]
[420919138,1776727842381,-263.298408,0.00013699,2]
[420919139,1776727842391,-263.298408,0.00013699,2]
[420919140,1776727842402,-263.298408,0.00013699,2]
[420919141,1776727842412,-263.298408,0.00013699,2]
[420919142,1776727842423,-263.298406,0.00013699,2]
[420919143,1776727842433,-918.598864,0.00013699,2]
[420919144,1776727842443,-918.598864,0.00013699,2]
[420919145,1776727842453,-918.598864,0.00013699,2]
[420919146,1776727842463,-918.598864,0.00013699,2]
[420919147,1776727842473,-918.598864,0.00013699,2]
[420919148,1776727842483,-918.598864,0.00013699,2]
[420919149,1776727842493,-918.598864,0.00013699,2]
[420919150,1776727842503,-918.598864,0.00013699,2]
[420919151,1776727842513,-918.598864,0.00013699,2]
[420919152,1776727842523,-918.598864,0.00013699,2]
[420919153,1776727842533,-918.598864,0.00013699,2]
[420919154,1776727842544,-918.598864,0.00013699,2]
[420919155,1776727842554,-918.598864,0.00013699,2]
[420919156,1776727842563,-918.598864,0.00013699,2]
[420919157,1776727842573,-918.598864,0.00013699,2]
[420919158,1776727842583,-918.598864,0.00013699,2]
[420919159,1776727842595,-918.598864,0.00013699,2]
[420919160,1776727842604,-918.598864,0.00013699,2]
[420919161,1776727842614,-918.598864,0.00013699,2]
[420919162,1776727842625,-918.598854,0.00013699,2]
[420919163,1776727842636,-773.827495,0.00013699,2]
[420919164,1776727842646,-415.874775,0.00013699,2]
[420919165,1776727842656,-773.827495,0.00013699,2]
[420919166,1776727842666,-415.874775,0.00013699,2]
[420919167,1776727842676,-773.827495,0.00013699,2]
[420919168,1776727842687,-415.874775,0.00013699,2]
[420919169,1776727842697,-773.827495,0.00013699,2]
[420919170,1776727842708,-415.874775,0.00013699,2]
[420919171,1776727842718,-773.827495,0.00013699,2]
[420919172,1776727842729,-415.874775,0.00013699,2]
[420919173,1776727842739,-773.827495,0.00013699,2]
[420919174,1776727842749,-415.874775,0.00013699,2]
[420919175,1776727842759,-773.827495,0.00013699,2]
[420919176,1776727842769,-415.874775,0.00013699,2]
[420919177,1776727842779,-773.827495,0.00013699,2]
[420919178,1776727842789,-415.874775,0.00013699,2]
[420919179,1776727842800,-773.827495,0.00013699,2]
[420919180,1776727842810,-415.874775,0.00013699,2]
[420919185,1776727843104,-773.827495,0.00013699,2]
[420919186,1776727843117,-415.874775,0.00013699,2]
[420919187,1776727843126,-168.734962,0.00013699,2]
[420919188,1776727843135,-773.827495,0.00013699,2]
[420919189,1776727843144,-415.874775,0.00013699,2]
[420919190,1776727843153,-168.734962,0.00013699,2]
[420919191,1776727843162,-773.827495,0.00013699,2]
[420919192,1776727843172,-415.874775,0.00013699,2]
[420919193,1776727843182,-168.734962,0.00013699,2]
[420919194,1776727843191,-773.827495,0.00013699,2]
[420919195,1776727843200,-415.874775,0.00013699,2]
[420919196,1776727843209,-168.734962,0.00013699,2]
[420919198,1776727843217,-773.827495,0.00013699,2]
[420919200,1776727843226,-415.874775,0.00013699,2]
[420919201,1776727843235,-168.734962,0.00013699,2]
[420919202,1776727843244,-773.827495,0.00013699,2]
[420919203,1776727843254,-415.874775,0.00013699,2]
[420919204,1776727843263,-168.734962,0.00013699,2]
[420919205,1776727843272,-773.827495,0.00013699,2]
[420919206,1776727843281,-415.874775,0.00013699,2]
[420919207,1776727843290,-168.734962,0.00013699,2]
[420919209,1776727843299,-773.827495,0.00013699,2]
[420919211,1776727843308,-168.734962,0.00013699,2]
[420919212,1776727843317,-415.874775,0.00013699,2]
[420919213,1776727843326,-773.827495,0.00013699,2]
[420919214,1776727843335,-168.734962,0.00013699,2]
[420919215,1776727843344,-415.874775,0.00013699,2]
[420919216,1776727843354,-773.827495,0.00013699,2]
[420919217,1776727843364,-168.734962,0.00013699,2]
[420919218,1776727843373,-415.874775,0.00013699,2]
[420919219,1776727843382,-773.827492,0.00013699,2]
[420919220,1776727843391,-168.734962,0.00013699,2]
[420919221,1776727843400,-415.87477,0.00013699,2]
[420919222,1776727843410,-168.734962,0.00013699,2]
[420919223,1776727843419,-168.734962,0.00013699,2]
[420919225,1776727843428,-168.734962,0.00013699,2]
[420919227,1776727843438,-168.734962,0.00013699,2]
[420919228,1776727843447,-168.734962,0.00013699,2]
[420919229,1776727843457,-168.734962,0.00013699,2]
[420919230,1776727843466,-168.734962,0.00013699,2]
[420919231,1776727843475,-168.734962,0.00013699,2]
[420919233,1776727843485,-168.734971,0.00013699,2]
[420919235,1776727843494,-175.48025,0.00013699,2]
[420919237,1776727843503,-175.48025,0.00013699,2]
[420919238,1776727843512,-175.48025,0.00013699,2]
[420919240,1776727843521,-175.48025,0.00013699,2]
[420919241,1776727843531,-175.48025,0.00013699,2]
[420919242,1776727843540,-175.48025,0.00013699,2]
[420919243,1776727843549,-175.48025,0.00013699,2]
[420919244,1776727843558,-175.48025,0.00013699,2]
[420919245,1776727843568,-175.48025,0.00013699,2]
[420919246,1776727843577,-175.48025,0.00013699,2]
[420919247,1776727843586,-175.48025,0.00013699,2]
[420919248,1776727843596,-175.48025,0.00013699,2]
[420919249,1776727843605,-175.48025,0.00013699,2]
[420919250,1776727843614,-175.48025,0.00013699,2]
[420919251,1776727843624,-175.48025,0.00013699,2]
[420919252,1776727843633,-175.48025,0.00013699,2]
[420919254,1776727843642,-175.48025,0.00013699,2]
[420919256,1776727843651,-175.48025,0.00013699,2]
[420919258,1776727843661,-175.48025,0.00013699,2]
[420919259,1776727843670,-175.480248,0.00013699,2]
[420919260,1776727843679,-151.0,0.00013699,2]
[420919261,1776727843689,-151.0,0.00013699,2]
[420919263,1776727843698,-167.324098,0.00013699,2]
[420919264,1776727843707,-151.042725,0.00013699,2]
[420919265,1776727843716,-151.0,0.00013699,2]
[420919266,1776727843725,-151.0,0.00013699,2]
[420919267,1776727843734,-151.0,0.00013699,2]
[420919268,1776727843743,-151.0,0.00013699,2]
[420919269,1776727843752,-151.0,0.00013699,2]
[420919270,1776727843762,-151.0,0.00013699,2]
[420919271,1776727843771,-151.0,0.00013699,2]
[420919272,1776727843781,-151.0,0.00013699,2]
[420919273,1776727843790,-151.0,0.00013699,2]
[420919274,1776727843800,-238.24643,0.00013699,2]
[420919275,1776727843810,-151.0,0.00013699,2]
[420919276,1776727843819,-151.0,0.00013699,2]
[420919277,1776727843828,-151.287067,0.00013699,2]
[420919278,1776727843837,-428.122488,0.00013699,2]
[420919279,1776727843847,-428.122488,0.00013699,2]
[420919280,1776727843857,-428.122488,0.00013699,2]
[420919281,1776727843866,-428.122488,0.00013699,2]
[420919282,1776727843875,-428.122488,0.00013699,2]
[420919283,1776727843884,-428.122488,0.00013699,2]
[420919284,1776727843894,-428.122488,0.00013699,2]
[420919285,1776727843903,-428.122488,0.00013699,2]
[420919286,1776727843912,-428.122488,0.00013699,2]
[420919287,1776727843922,-428.122488,0.00013699,2]
[420919288,1776727843931,-428.122488,0.00013699,2]
[420919289,1776727843940,-428.122488,0.00013699,2]
[420919290,1776727843949,-356.464354,0.00013699,2]
[420919291,1776727843959,-428.122488,0.00013699,2]
[420919292,1776727843968,-356.464354,0.00013699,2]
[420919293,1776727843977,-428.122488,0.00013699,2]
[420919294,1776727843986,-356.464354,0.00013699,2]
[420919295,1776727843995,-356.464354,0.00013699,2]
[420919296,1776727844005,-428.122488,0.00013699,2]
[420919297,1776727844014,-356.464354,0.00013699,2]
[420919298,1776727844023,-428.122488,0.00013699,2]
[420919299,1776727844033,-356.464354,0.00013699,2]
[420919300,1776727844042,-428.122488,0.00013699,2]
[420919301,1776727844051,-356.464354,0.00013699,2]
[420919302,1776727844061,-428.122488,0.00013699,2]
[420919303,1776727844070,-356.464354,0.00013699,2]
[420919304,1776727844080,-428.122488,0.00013699,2]
[420919305,1776727844089,-356.464354,0.00013699,2]
[420919306,1776727844098,-356.464354,0.00013699,2]
[420919307,1776727844107,-356.464354,0.00013699,2]
[420919308,1776727844116,-356.464354,0.00013699,2]
[420919309,1776727844126,-428.12248,0.00013699,2]
[420919310,1776727844135,-356.464354,0.00013699,2]
[420919311,1776727844146,-356.464354,0.00013699,2]
[420919312,1776727844155,-356.464354,0.00013699,2]
[420919313,1776727844164,-356.464354,0.00013699,2]
[420919314,1776727844174,-356.464354,0.00013699,2]
[420919315,1776727844183,-356.464354,0.00013699,2]
[420919316,1776727844193,-356.464354,0.00013699,2]
[420919317,1776727844202,-356.464358,0.00013699,2]
[420919318,1776727844212,-1757.206414,0.00013699,2]
[420919319,1776727844221,-1757.206414,0.00013699,2]
[420919320,1776727844230,-1757.206414,0.00013699,2]
[420919321,1776727844240,-1757.206414,0.00013699,2]
[420919322,1776727844249,-1757.206414,0.00013699,2]
[420919323,1776727844258,-1757.206414,0.00013699,2]
[420919324,1776727844267,-1757.206414,0.00013699,2]
[420919325,1776727844277,-1757.206414,0.00013699,2]
[420919326,1776727844286,-1757.206414,0.00013699,2]
[420919327,1776727844295,-1757.206414,0.00013699,2]
[420919328,1776727844305,-1757.206414,0.00013699,2]
[420919329,1776727844315,-1757.206414,0.00013699,2]
[420919330,1776727844324,-1757.206414,0.00013699,2]
[420919331,1776727844334,-1757.206414,0.00013699,2]
[420919332,1776727844343,-1757.206414,0.00013699,2]
[420919333,1776727844352,-1757.206414,0.00013699,2]
[420919334,1776727844361,-1757.206414,0.00013699,2]
[420919335,1776727844371,-1757.206414,0.00013699,2]
[420919336,1776727844380,-1757.206414,0.00013699,2]
[420919337,1776727844389,-1757.206418,0.00013699,2]
[420919338,1776727844399,-274.307445,0.00013699,2]
[420919339,1776727844408,-274.307445,0.00013699,2]
[420919340,1776727844418,-274.307445,0.00013699,2]
[420919341,1776727844427,-274.307445,0.00013699,2]
[420919342,1776727844437,-274.307445,0.00013699,2]